Cogmind - Beta 9.6 *** ADVENTURER MODE // 2020.06.30 @ 06:04:35 Player: linyati Result: Destroyed by G-47 Trooper with Particle Gun Performance ------------- Evolutions (1) 500 Regions Visited (2) 400 Robots Destroyed (28) 140 Value Destroyed (612) 612 Prototype IDs (1) 20 Alien Tech Used (0) 0 Bonus (0) 0 TOTAL SCORE: 1672 Bonus ------- None Cogmind --------- Core Integrity 0/400 Matter 259/300 Energy 94/100 System Corruption 0% Temperature Cool (15) Movement Core (650) Ox12 Location -9/Materials Parts ------- > --- POWER (1) -------- (None) > --- PROPULSION (4) --- (None) > --- UTILITY (2) ------ Small Storage Unit High-capacity Storage Unit > --- WEAPON (2) ------- Hammer > --- INVENTORY (14) --- Improved Heat Sink Power Shielding Power Shielding Power Shielding Hardened Light Armor Plating Light Assault Rifle Peak State ------------ > --- POWER ------------ Ion Engine > --- PROPULSION ------- Aluminum Leg Aluminum Leg Aluminum Leg > --- UTILITY ---------- Small Storage Unit High-capacity Storage Unit > --- WEAPON ----------- Beam Rifle Heavy Assault Rifle > --- INVENTORY -------- Light Ion Engine Improved Heat Sink Power Shielding Power Shielding Power Shielding Hardened Light Armor Plating EM Pulse Gun Small Laser Small Laser Small Laser Advanced Beam Cannon Autogun Grenade Launcher Hammer [Rating: 12] Favorites ----------- Power Ion Engine Engine Ion Engine Propulsion Aluminum Leg Leg Aluminum Leg Wheel Wheel Utility Small Storage Unit Device Heat Sink Storage Small Storage Unit Protection Propulsion Shielding Weapon Light Assault Rifle Energy Gun Medium Laser Energy Cannon Advanced Beam Cannon Ballistic Gun Light Assault Rifle Launcher Grenade Launcher Impact Weapon Hammer Build | -11 -10 -9 ------- Run | Scr Mat Mat Slots Evolved 2 | . . 2 Power . | . . . Propulsion 2 | . . 2 Utility . | . . . Weapon . | . . . Parts Attached 35 | 6 10 19 Power 2 | 1 . 1 Engine 2 | 1 . 1 Core . | . . . Reactor . | . . . Propulsion 7 | 2 . 5 Treads . | . . . Leg 5 | 2 . 3 Wheel 2 | . . 2 Hover . | . . . Flight . | . . . Utility 5 | 1 4 . Device 2 | . 2 . Storage 2 | 1 1 . Processor . | . . . Hackware . | . . . Protection 1 | . 1 . Artifact . | . . . Weapon 21 | 2 6 13 Energy Gun 11 | 1 3 7 Energy Cannon 1 | . . 1 Ballistic Gun 4 | 1 1 2 Ballistic Cannon . | . . . Launcher 4 | . 2 2 Special Weapon . | . . . Impact Weapon 1 | . . 1 Slashing Weapon . | . . . Piercing Weapon . | . . . Special Melee Weapon . | . . . Unidentified Prototypes 1 | . . 1 Parts Lost 14 | . 1 13 Power 1 | . . 1 Propulsion 7 | . . 7 Utility . | . . . Weapon 6 | . 1 5 Highest Loss Streak 9 | . 1 9 Average Slot Usage (%) 91 | . 98 84 Engine 12 | . 14 10 Leg 28 | . 28 28 Wheel 1 | . . 2 Device 2 | . 5 . Storage 21 | . 20 22 Energy Gun 13 | . 14 12 Ballistic Gun 9 | . 12 7 Naked Turns . | . . . Heaviest Build 47 | 12 44 47 Greatest Support 30 | 20 20 30 Greatest Overweight (x) 12 | . 2 12 Average Overweight (x) . | . . 1 Largest Inventory Capacity 14 | 6 14 14 Average Capacity 11 | 5 9 14 Most Carried 14 | 6 14 14 Average Carried 9 | 3 8 12 Final Capacity 14 | 6 14 14 Final Carried 14 | 6 14 6 Class Distribution -------------------- 100% | Mutant Dominant Class ---------------- Mutant | -10/Materials Mutant | -9/Materials Resources | -11 -10 -9 ----------- Run | Scr Mat Mat Matter Collected 599 | 260 112 227 Remotely . | . . . Salvage Created 940 | 105 187 648 Parts 60 | 11 9 40 Haulers Intercepted 1 | . . 1 Recyclers Shooed 1 | . . 1 Parts Field Recycled . | . . . Retrieved Matter . | . . . Parts Self-Destructed . | . . . Prevented . | . . . Kills | -11 -10 -9 ------- Run | Scr Mat Mat Combat Hostiles Destroyed 16 | . 4 12 Guns 13 | . 2 11 AOE 3 | . 2 1 Classes Destroyed 10 | 2 2 6 Worker 2 | . . 2 Builder 2 | . . 2 Tunneler 3 | 2 . 1 Hauler 1 | . . 1 Recycler 2 | 1 . 1 Watcher 2 | . 1 1 Swarmer 4 | . . 4 Grunt 8 | . 4 4 Duelist 1 | . . 1 Sentry 3 | . . 3 Best Kill Streak 7 | 3 5 7 Combat Bots Only 4 | . 4 3 Max Kills in Single Turn 3 | 1 2 3 Gunslinging . | . . . Exploded 2 | . 2 1 Melee . | . . . Uniques/NPCs Destroyed . | . . . Combat | -11 -10 -9 -------- Run | Scr Mat Mat Damage Taken 1767 | . 343 1424 Core 506 | . 99 407 Absorbed by Shields . | . . . Core Remaining (%) 80 | 100 60 . Volleys Fired 81 | 4 17 60 Largest 2 | 1 2 2 Hottest 121 | 40 80 121 Shots Fired 124 | 4 24 96 Gun 120 | 4 21 95 Cannon . | . . . Launcher 4 | . 3 1 Special . | . . . Kinetic 38 | . 11 27 Thermal 50 | . . 50 Explosive 4 | . 3 1 Electromagnetic 32 | 4 10 18 Robot Hit Streak 21 | 2 6 21 Robot Miss Streak 2 | 1 2 2 Penetration Max . | . . . Secondary Targets 5 | . 1 4 Max Gunslinging Chain 1 | . 1 1 Shots Hit Robots 95 | 3 16 76 Core Hits 44 | 3 11 30 Critical Hits . | . . . Critical Kills . | . . . Critical Parts Destroyed . | . . . Melee Attacks . | . . . Impact . | . . . Slashing . | . . . Piercing . | . . . Sneak Attacks . | . . . Combat Hostiles . | . . . Follow-up Attacks . | . . . Damage Inflicted 1594 | 63 318 1213 Guns 1162 | 42 172 948 Cannons . | . . . Explosions 432 | 21 146 265 Melee . | . . . Ramming . | . . . Kinetic 332 | . 79 253 Thermal 655 | 21 . 634 Explosive 289 | . 146 143 Electromagnetic 318 | 42 93 183 Impact . | . . . Slashing . | . . . Piercing . | . . . Highest Corruption . | . . . Average Corruption . | . . . Corruption Purged . | . . . Overload Shots . | . . . Overflow Damage 29 | . . 29 Projectiles . | . . . Explosions 29 | . . 29 Melee . | . . . Knockbacks . | . . . Impact . | . . . Kinetic . | . . . Secondary . | . . . Self-Inflicted Damage 79 | . 11 68 Shots 3 | . 1 2 Rammed . | . . . Targets Rammed . | . . . Kicked . | . . . Crushed . | . . . Highest Temperature 270 | . 87 270 Average Temperature 64 | . 44 70 Received Heat Transfer 840 | . 240 600 Siege Activations . | . . . Robots Corrupted . | . . . Combat Hostiles . | . . . Parts Fried . | . . . Impact Corruptions . | . . . Robots Melted . | . . . Combat Hostiles . | . . . Parts Melted . | . . . Heat Transferred 1436 | 50 . 1386 Parts Sabotaged . | . . . Parts Stolen . | . . . Parts Stripped . | . . . Power Chain Reactions 2 | 1 . 1 Missiles Intercepted . | . . . Alert | -11 -10 -9 ------- Run | Scr Mat Mat Peak Influence 202 | 15 120 202 Average Influence 65 | 4 56 82 Maximum Alert Level 1 | . . 1 Low Security (%) 99 | 100 100 99 Level 1 . | . . . Level 2 . | . . . Level 3 . | . . . Level 4 . | . . . Level 5 . | . . . High Security . | . . . Max Security . | . . . Squads Dispatched . | . . . Investigation . | . . . Extermination . | . . . Reinforcement . | . . . Assault . | . . . Garrison . | . . . Intercept . | . . . Construction Impeded . | . . . Haulers Reinforced . | . . . Stealth | -11 -10 -9 --------- Run | Scr Mat Mat Distress Signals 3 | . 1 2 Communications Jammed . | . . . Distress Signals . | . . . Times Spotted 29 | . 5 24 Peak Tracking Total 8 | . 4 8 Tactical Retreats 2 | . 1 1 Traps | -11 -10 -9 ------- Run | Scr Mat Mat Traps Triggered . | . . . Indirectly . | . . . Trap Hack Attempts . | . . . Triggered . | . . . Disarmed . | . . . Reprogrammed . | . . . Reused . | . . . Traps Extracted . | . . . Installed . | . . . Triggered . | . . . Machines | -11 -10 -9 ---------- Run | Scr Mat Mat Machines Disabled . | . . . Max in Single Turn . | . . . Machines Sabotaged . | . . . Garrisons Compromised . | . . . Overloaded Fab Kills . | . . . Fab Network Shutdowns . | . . . Hacking | -11 -10 -9 --------- Run | Scr Mat Mat Machines Accessed . | . . . Terminals . | . . . Fabricators . | . . . Repair Stations . | . . . Recycling Units . | . . . Scanalyzers . | . . . Garrison Access . | . . . Total Hacks . | . . . Successful . | . . . Failed . | . . . Catastrophic . | . . . Database Lockouts . | . . . Manual . | . . . Terminals . | . . . Fabricators . | . . . Repair Stations . | . . . Recycling Units . | . . . Scanalyzers . | . . . Garrison Access . | . . . Terminal Hacks . | . . . Fabricator Hacks . | . . . Repair Station Hacks . | . . . Recycling Unit Hacks . | . . . Scanalyzer . | . . . Garrison Access Hacks . | . . . Unauthorized Hacks . | . . . Terminals . | . . . Fabricators . | . . . Repair Stations . | . . . Recycling Units . | . . . Scanalyzers . | . . . Garrison Access . | . . . Data Cores Recovered . | . . . Used . | . . . Hacking Detections . | . . . Full Trace Events . | . . . Feedback Events . | . . . Feedback Blocked . | . . . Robot Schematics Acquired . | . . . Robots Built . | . . . Matter . | . . . Time . | . . . Total Robot Build Rating . | . . . Part Schematics Acquired . | . . . Parts Built . | . . . Matter . | . . . Time . | . . . Total Part Build Rating . | . . . Parts Repaired . | . . . Time . | . . . Parts Recycled . | . . . Recycled Matter . | . . . Retrieved Matter . | . . . Retrieved Components . | . . . Parts Scanalyzed . | . . . Part Schematics Acquired . | . . . Parts Damaged . | . . . Bothacking | -11 -10 -9 ------------ Run | Scr Mat Mat Used RIF Installer . | . . . Robots Hacked . | . . . Non-combat . | . . . Combat . | . . . Robot Hacks Applied . | . . . Relay Couplers Released . | . . . Robots Rewired . | . . . Allies Hacked . | . . . Hacks Repelled . | . . . Allies | -11 -10 -9 -------- Run | Scr Mat Mat Total Allies . | . . . Largest Group . | . . . Highest-Rated Group . | . . . Highest-Rated Ally . | . . . Total Orders . | . . . Ally Attacks . | . . . Total Damage . | . . . Kills . | . . . Allies Corrupted . | . . . Allies Melted . | . . . Intel | -11 -10 -9 ------- Run | Scr Mat Mat Robot Analysis Total . | . . . Derelict Logs Recovered . | . . . Drone Launches . | . . . Drone Recoveries . | . . . Exploration | -11 -10 -9 ------------- Run | Scr Mat Mat Turns Passed 1505 | 110 655 740 Spaces Moved 824 | 72 405 347 Core 12 | 10 . 2 Treads . | . . . Legs 801 | 62 405 334 Wheels 11 | . . 11 Hover . | . . . Flight . | . . . Fastest Speed 50 | 50 120 100 Average Speed 145 | 110 143 156 Slowest Speed 650 | 120 180 650 Overloaded Moves . | . . . Propulsion Burnouts . | . . . Robots Hopped . | . . . Cave-ins Triggered . | . . . Exploration Rate (%) 25 | 3 42 30 Regions Visited 2 Branch Regions . Pre-discovered Areas . | . . . Known Exits Taken . | . . . Unknown Exits Taken 2 | 1 1 . Scrap Searched . | . . . Spaces Dug . | . . . Terrain Destroyed 25 | 7 7 11 Melee . | . . . Projectile . | . . . AOE 25 | 7 7 11 Actions | -11 -10 -9 --------- Run | Scr Mat Mat Total 1014 | 98 459 457 Wait 18 | 5 . 13 Move 822 | 71 404 347 Hop . | . . . Pick Up 39 | 12 18 9 Fast Attach 2 | . 2 . Attach 19 | 6 1 12 Detach . | . . . Swap 14 | . 7 7 Drop 19 | . 10 9 Fire 81 | 4 17 60 Melee . | . . . Ram . | . . . Kick . | . . . Crush . | . . . Escape Stasis . | . . . Rewire . | . . . Trap . | . . . Miscellaneous . | . . . Route ------- -11/Scrapyard -10/Materials -9/Materials History --------- Turn | Location | Event 3 | -11/Scrapyard | Discovered new exit (range 15) 111 | -11/Scrapyard | Entered Materials 312 | -10/Materials | Build established: Mutant 447 | -10/Materials | Discovered new exit (range 8) 766 | -10/Materials | Entered another Materials area 766 | -9/Materials | Evolved 2 slots: Propulsion x2 1379 | -9/Materials | Lost 4 parts (2n2w) 1490 | -9/Materials | Core integrity fell below 50% 1498 | -9/Materials | Core integrity fell below 20% 1506 | -9/Materials | Destroyed by G-47 Trooper with Particle Gun Last Messages --------------- Autogun severed. U-05 Engineer lays Concrete. U-05 Engineer builds a Wall. U-05 Engineer lays Concrete. [Achievement: Let's See Who's Tougher] L-31 Rogue destroyed. Grenade Launcher destroyed. Destroyed Grenade Launcher. U-05 Engineer destroyed. R-06 Scavenger destroyed. Aluminum Leg destroyed. Wheel destroyed. U-05 Engineer builds a Wall. Acquired Lgt. Assault Rifle. Aluminum Leg destroyed. R-06 Scavenger collects Wheel. U-05 Engineer lays Concrete. U-05 Engineer builds a Wall. K-01 Serf collects debris. S-10 Pest destroyed. Map ----- +----------------------------------------------------+ | ?????????????????????????????????????????????????? | | ?????????????????????????????????????????????????? | | ?????????????????????????????????????????????????? | | ?????????????????????????????????????????????????? | | ?????????????????????????????????????????????????? | | ??????????????????????#+#????????????????????????? | | ????????????????????? #??????????????????????? | | ????????????????????? ???????????????????????? | | ????????????????????? ???????????????????????? | | ????????????????????? ???????????????????????? | | ????????????????????? ???????????????????????? | | ?????????????????????# #???##??????????????????? | | ????????????????????## #??? #??????????????????? | | ???????????????????? ]] +?? ???????????????????? | | ?????????????????????]k[ #?? ???????????????????? | | ????????????????#????![] # ?#??????????????????? | | ??????????????### ???# #** #??????????????????? | | ??????????????#! ??# #*! #??????????????????? | | ??????????????#! ?# #* ???????????????????? | | ??? ?????????????!!!##ugg# ????????????????????? | | ??? ???????#######?### # ?????????????????????? | | ??? ????####"####### #??????????????????????? | | ??? ????# ## #g%= #??????????????????????? | | ??? ???## ### % % ############???????????? | | ??? ???#" ! # %!=[!s ????????? | | ??? ??### + !=! %@s ????????? | | ??# #?#"# # =%= w ????????? | | ??# #?## # #######;######+##??????????? | | ??# #?#"#% # #??????? ?????????????????? | | ??# #?# " % # #???????? #????????????????? | | ??# #?##"#+######## #??????????????????????????? | | ??# #??# # # ## #??????????????????????????? | | ??# #??### # #### #??????????????????????????? | | ### ##??## #####??# #??????????????????????????? | | ##### ##?????# #??????????????????????????? | | T ! #?????# #??????????????????????????? | | "" #?????# #??????????????????????????? | | #?????# +??????????????????????????? | | ###+####?????# #??????????????????????????? | | # ##????????????? #??????????????????????????? | | # #?????????????? ???????????????????????????? | | # #????????????????????????????????????????????? | | # #????????????????????????????????????????????? | | # #????????????????????????????????????????????? | | # #????????????????????????????????????????????? | | # #????????????????????????????????????????????? | | # #????????????????????????????????????????????? | | # #????????????????????????????????????????????? | | #????????????????????????????????????????????? | | ? +????????????????????????????????????????????? | +----------------------------------------------------+ Best States ------------- Heat Dissipation 39 Energy Generation 10 Energy Capacity 250 Matter Stores 300 Matter Capacity 300 Sight Range 16 Terrain Scan Density 10 Resistance: KI 20 Resistance: TH 20 Resistance: EX 20 Resistance: EM 20 Resistance: I 20 Resistance: S 20 Resistance: P 20 Propulsion Shielding 33 Evasion (%) 40 Offensive Hacking 10 Item Schematics ----------------- None Robot Schematics ------------------ None Fabricated ------------ Nothing Alien Tech Used ----------------- None Achievements -------------- Crack Shot Let's See Who's Tougher Loot Pinata Risk Taker Challenges ------------ None Game ------ Seed StasisAngularStabilizer Manual? 0 Play Time 00:23:19 Cumulative 1.0 hours Start 2020.06.30 @ 05:43:05 End 2020.06.30 @ 06:04:35 Sessions 1 Manual Loads 0 Difficulty Adventurer Special Mode None Game No. 4 Rogue 3 Adventurer 1 Explorer 0 Win Type - Total 0 Types 0/0/0/0/0/0/0 Lore% 0 Gallery% 3 Achievement% 3 Wizard Run 0 Options --------- ASCII 0 Keyboard 0 Movement Mouse Keybinds 0 Fullscreen 2 Font 18/SmallcapsGlow Map View 76x50 Tactical HUD 0 Map Filters NONE Filters NONE Steam 1 RUN: 25f4a719-b5de-493d-9ecc-bbb56711f2d0